[Event "Titled Tuesday Blitz December 27 Late 2022"]
[White "Li, Hui"]
[Black "Sreyas Payyappat"]
[WhiteFideId "15400310"]
[BlackFideId "46674969"]
[WhiteElo "1963"]
[BlackElo "2076"]
[Result "1/2-1/2"]
[Round "07"]
[TimeControl "180+2"]
[Date "2022.12.27"]
[WhiteClock "0:00:15"]
[BlackClock "0:01:13"]

1. e4 {[%clk 0:01:15]}  c6 {[%clk 0:02:58]} 2. d4 {[%clk 0:00:20]}  d5 {[%clk 0:02:59]} 3. Nd2 {[%clk 0:00:19]}  dxe4 {[%clk 0:02:57]} 4. Nxe4 {[%clk 0:00:20]}  Nf6 {[%clk 0:02:55]} 5. Nxf6+ {[%clk 0:00:20]}  exf6 {[%clk 0:02:56]} 6. c3 {[%clk 0:00:21]}  Bd6 {[%clk 0:02:56]} 7. Bd3 {[%clk 0:00:21]}  O-O {[%clk 0:02:57]} 8. Qc2 {[%clk 0:00:20]}  Re8+ {[%clk 0:02:58]} 9. Ne2 {[%clk 0:00:21]}  h5 {[%clk 0:02:56]} 10. O-O {[%clk 0:00:01]}  h4 {[%clk 0:02:53]} 11. h3 {[%clk 0:00:02]}  Nd7 {[%clk 0:02:53]} 12. Be3 {[%clk 0:00:02]}  Nf8 {[%clk 0:02:52]} 13. Qd2 {[%clk 0:00:02]}  Bc7 {[%clk 0:02:49]} 14. Bf4 {[%clk 0:00:03]}  Be6 {[%clk 0:02:45]} 15. Bxc7 {[%clk 0:00:03]}  Qxc7 {[%clk 0:02:44]} 16. Nf4 {[%clk 0:00:03]}  Rad8 {[%clk 0:02:37]} 17. Rfe1 {[%clk 0:00:04]}  a5 {[%clk 0:02:32]} 18. Nxe6 {[%clk 0:00:03]}  Nxe6 {[%clk 0:02:29]} 19. Qc2 {[%clk 0:00:03]}  g5 {[%clk 0:02:26]} 20. Bf5 {[%clk 0:00:03]}  Kg7 {[%clk 0:02:22]} 21. Bxe6 {[%clk 0:00:03]}  Rxe6 {[%clk 0:02:19]} 22. Rxe6 {[%clk 0:00:03]}  fxe6 {[%clk 0:02:19]} 23. Re1 {[%clk 0:00:04]}  Re8 {[%clk 0:02:17]} 24. Qe4 {[%clk 0:00:04]}  e5 {[%clk 0:02:15]} 25. Qf5 {[%clk 0:00:03]}  c5 {[%clk 0:01:24]} 26. dxe5 {[%clk 0:00:03]}  Rxe5 {[%clk 0:01:23]} 27. Rxe5 {[%clk 0:00:03]}  Qxe5 {[%clk 0:01:24]} 28. Qxe5 {[%clk 0:00:04]}  fxe5 {[%clk 0:01:25]} 29. Kf1 {[%clk 0:00:04]}  Kf6 {[%clk 0:01:23]} 30. Ke2 {[%clk 0:00:04]}  e4 {[%clk 0:01:22]} 31. c4 {[%clk 0:00:03]}  Ke5 {[%clk 0:01:23]} 32. Ke3 {[%clk 0:00:04]}  Kf5 {[%clk 0:01:23]} 33. b3 {[%clk 0:00:04]}  Ke5 {[%clk 0:01:23]} 34. a3 {[%clk 0:00:02]}  Kf5 {[%clk 0:01:23]} 35. f3 {[%clk 0:00:02]}  exf3 {[%clk 0:01:21]} 36. Kxf3 {[%clk 0:00:03]}  Ke5 {[%clk 0:01:21]} 37. Ke3 {[%clk 0:00:03]}  Kf5 {[%clk 0:01:21]} 38. Kf3 {[%clk 0:00:04]}  Ke5 {[%clk 0:01:22]} 39. Ke3 {[%clk 0:00:04]}  a4 {[%clk 0:01:18]} 40. bxa4 {[%clk 0:00:03]}  b6 {[%clk 0:01:19]} 41. a5 {[%clk 0:00:03]}  bxa5 {[%clk 0:01:19]} 42. a4 {[%clk 0:00:04]}  Kf5 {[%clk 0:01:17]} 43. Kf3 {[%clk 0:00:04]}  g4+ {[%clk 0:01:10]} 44. hxg4+ {[%clk 0:00:05]}  Kg5 {[%clk 0:01:11]} 45. Ke2 {[%clk 0:00:04]}  Kxg4 {[%clk 0:01:12]} 46. Kf2 {[%clk 0:00:04]}  Kf4 {[%clk 0:01:12]} 47. Kg1 {[%clk 0:00:04]}  Ke4 {[%clk 0:01:06]} 48. Kh2 {[%clk 0:00:03]}  Kd4 {[%clk 0:01:06]} 49. Kh3 {[%clk 0:00:04]}  Kxc4 {[%clk 0:01:06]} 50. Kxh4 {[%clk 0:00:05]}  Kd4 {[%clk 0:01:05]} 51. g4 {[%clk 0:00:05]}  c4 {[%clk 0:01:06]} 52. g5 {[%clk 0:00:06]}  Ke5 {[%clk 0:01:04]} 53. g6 {[%clk 0:00:07]}  c3 {[%clk 0:01:05]} 54. g7 {[%clk 0:00:07]}  c2 {[%clk 0:01:05]} 55. g8=Q {[%clk 0:00:07]}  c1=Q {[%clk 0:01:06]} 56. Qg5+ {[%clk 0:00:07]}  Qxg5+ {[%clk 0:01:04]} 57. Kxg5 {[%clk 0:00:07]}  Kd4 {[%clk 0:01:05]} 58. Kf4 {[%clk 0:00:08]}  Kc4 {[%clk 0:01:06]} 59. Ke3 {[%clk 0:00:09]}  Kb4 {[%clk 0:01:07]} 60. Kd2 {[%clk 0:00:09]}  Kxa4 {[%clk 0:01:08]} 61. Kc1 {[%clk 0:00:10]}  Kb3 {[%clk 0:01:09]} 62. Kb1 {[%clk 0:00:11]}  Ka3 {[%clk 0:01:09]} 63. Ka1 {[%clk 0:00:12]}  Kb3 {[%clk 0:01:10]} 64. Kb1 {[%clk 0:00:13]}  a4 {[%clk 0:01:11]} 65. Ka1 {[%clk 0:00:13]}  a3 {[%clk 0:01:12]} 66. Kb1 {[%clk 0:00:14]}  a2+ {[%clk 0:01:13]} 67. Ka1 {[%clk 0:00:15]}  Ka3 {[%clk 0:01:13]} 1/2-1/2


[Site "https://www.chess.com"]

[Event "Titled Tuesday Blitz December 27 Late 2022"]
[White "Liu, Casper"]
[Black "Gurevich, Dmitry"]
[WhiteFideId "1454153"]
[BlackFideId "2000407"]
[WhiteElo "2278"]
[BlackElo "2393"]
[Result "1-0"]
[Round "07"]
[TimeControl "180+2"]
[Date "2022.12.27"]
[WhiteClock "0:01:44"]
[BlackClock "0:00:22"]

1. a3 {[%clk 0:02:55]}  d5 {[%clk 0:02:54]} 2. d4 {[%clk 0:02:55]}  c5 {[%clk 0:02:54]} 3. dxc5 {[%clk 0:02:55]}  e6 {[%clk 0:02:50]} 4. b4 {[%clk 0:02:54]}  a5 {[%clk 0:02:49]} 5. Bb2 {[%clk 0:02:54]}  Nf6 {[%clk 0:02:47]} 6. e3 {[%clk 0:02:52]}  axb4 {[%clk 0:02:42]} 7. axb4 {[%clk 0:02:52]}  Rxa1 {[%clk 0:02:40]} 8. Bxa1 {[%clk 0:02:53]}  b6 {[%clk 0:02:40]} 9. cxb6 {[%clk 0:02:52]}  Bxb4+ {[%clk 0:02:37]} 10. c3 {[%clk 0:02:49]}  Ba5 {[%clk 0:02:35]} 11. Qa4+ {[%clk 0:02:49]}  Nc6 {[%clk 0:02:23]} 12. Qxc6+ {[%clk 0:02:44]}  Bd7 {[%clk 0:02:22]} 13. Qd6 {[%clk 0:02:42]}  Ne4 {[%clk 0:02:13]} 14. Qc7 {[%clk 0:02:34]}  Qxc7 {[%clk 0:02:04]} 15. bxc7 {[%clk 0:02:35]}  Ke7 {[%clk 0:01:59]} 16. Bd3 {[%clk 0:02:33]}  Nc5 {[%clk 0:01:42]} 17. Bc2 {[%clk 0:02:32]}  Bb5 {[%clk 0:01:37]} 18. Bb2 {[%clk 0:02:30]}  Bxc7 {[%clk 0:01:34]} 19. Ba3 {[%clk 0:02:29]}  Bd6 {[%clk 0:01:34]} 20. Nf3 {[%clk 0:02:23]}  Nd3+ {[%clk 0:01:28]} 21. Bxd3 {[%clk 0:02:23]}  Bxd3 {[%clk 0:01:27]} 22. Kd2 {[%clk 0:02:19]}  Be4 {[%clk 0:01:21]} 23. Bxd6+ {[%clk 0:02:15]}  Kxd6 {[%clk 0:01:20]} 24. Na3 {[%clk 0:02:15]}  Rb8 {[%clk 0:01:19]} 25. Ra1 {[%clk 0:02:16]}  Rb2+ {[%clk 0:01:17]} 26. Ke1 {[%clk 0:02:12]}  h6 {[%clk 0:01:04]} 27. Nd2 {[%clk 0:02:11]}  Bd3 {[%clk 0:01:01]} 28. Kd1 {[%clk 0:01:51]}  e5 {[%clk 0:00:59]} 29. Kc1 {[%clk 0:01:51]}  Rb6 {[%clk 0:00:48]} 30. Nc2 {[%clk 0:01:49]}  f5 {[%clk 0:00:31]} 31. Nb4 {[%clk 0:01:48]}  Be2 {[%clk 0:00:28]} 32. Ra5 {[%clk 0:01:47]}  d4 {[%clk 0:00:25]} 33. exd4 {[%clk 0:01:47]}  e4 {[%clk 0:00:22]} 34. Rxf5 {[%clk 0:01:44]} 1-0


[Site "https://www.chess.com"]

[Event "Titled Tuesday Blitz December 27 Late 2022"]
[White "Lorenzo De La Riva, Lazaro"]
[Black "Marjanovic, Annamaria"]
[WhiteFideId "2268809"]
[BlackFideId "750930"]
[WhiteElo "2404"]
[BlackElo "2273"]
[Result "0-1"]
[Round "07"]
[TimeControl "180+2"]
[Date "2022.12.27"]
[WhiteClock "0:00:06"]
[BlackClock "0:00:09"]

1. b3 {[%clk 0:02:56]}  e5 {[%clk 0:02:58]} 2. Bb2 {[%clk 0:02:57]}  Nc6 {[%clk 0:02:59]} 3. e3 {[%clk 0:02:57]}  Nf6 {[%clk 0:02:59]} 4. c4 {[%clk 0:02:56]}  d5 {[%clk 0:02:53]} 5. cxd5 {[%clk 0:02:55]}  Nxd5 {[%clk 0:02:54]} 6. d3 {[%clk 0:02:53]}  Bb4+ {[%clk 0:02:52]} 7. Nd2 {[%clk 0:02:51]}  O-O {[%clk 0:02:44]} 8. Qc2 {[%clk 0:02:49]}  Re8 {[%clk 0:02:41]} 9. a3 {[%clk 0:02:47]}  Bxd2+ {[%clk 0:02:29]} 10. Qxd2 {[%clk 0:02:46]}  Be6 {[%clk 0:02:27]} 11. Nf3 {[%clk 0:02:42]}  f6 {[%clk 0:02:27]} 12. Be2 {[%clk 0:02:41]}  Nb6 {[%clk 0:02:25]} 13. Qc2 {[%clk 0:02:34]}  Qd5 {[%clk 0:02:23]} 14. b4 {[%clk 0:02:32]}  a5 {[%clk 0:02:21]} 15. e4 {[%clk 0:02:24]}  Qd7 {[%clk 0:02:11]} 16. b5 {[%clk 0:02:21]}  Ne7 {[%clk 0:02:07]} 17. a4 {[%clk 0:02:13]}  Ng6 {[%clk 0:02:04]} 18. g3 {[%clk 0:02:03]}  Bh3 {[%clk 0:02:00]} 19. Rc1 {[%clk 0:01:55]}  Rec8 {[%clk 0:01:58]} 20. Qb3+ {[%clk 0:01:51]}  Kh8 {[%clk 0:01:49]} 21. Bf1 {[%clk 0:01:43]}  Bxf1 {[%clk 0:01:37]} 22. Kxf1 {[%clk 0:01:44]}  Rd8 {[%clk 0:01:33]} 23. Ke2 {[%clk 0:01:43]}  Nxa4 {[%clk 0:01:25]} 24. Ba1 {[%clk 0:01:29]}  b6 {[%clk 0:01:10]} 25. Rhd1 {[%clk 0:01:26]}  Nc5 {[%clk 0:01:09]} 26. Qc4 {[%clk 0:01:25]}  Nf8 {[%clk 0:00:55]} 27. d4 {[%clk 0:01:17]}  exd4 {[%clk 0:00:47]} 28. Rxd4 {[%clk 0:01:17]}  Qe6 {[%clk 0:00:42]} 29. Ke3 {[%clk 0:00:42]}  Rxd4 {[%clk 0:00:32]} 30. Bxd4 {[%clk 0:00:35]}  Qxe4+ {[%clk 0:00:31]} 31. Kd2 {[%clk 0:00:35]}  Qxf3 {[%clk 0:00:28]} 32. Bxc5 {[%clk 0:00:35]}  bxc5 {[%clk 0:00:26]} 33. Qxc5 {[%clk 0:00:36]}  Rd8+ {[%clk 0:00:25]} 34. Ke1 {[%clk 0:00:36]}  Qh1+ {[%clk 0:00:20]} 35. Ke2 {[%clk 0:00:36]}  Re8+ {[%clk 0:00:21]} 36. Kd2 {[%clk 0:00:33]}  Qf3 {[%clk 0:00:20]} 37. Rc3 {[%clk 0:00:30]}  Qe2+ {[%clk 0:00:18]} 38. Kc1 {[%clk 0:00:30]}  Ne6 {[%clk 0:00:16]} 39. Qd5 {[%clk 0:00:21]}  Qe1+ {[%clk 0:00:15]} 40. Kb2 {[%clk 0:00:20]}  Qxf2+ {[%clk 0:00:15]} 41. Kb3 {[%clk 0:00:18]}  Nd4+ {[%clk 0:00:13]} 42. Kc4 {[%clk 0:00:18]}  Nf3 {[%clk 0:00:09]} 43. Rxf3 {[%clk 0:00:17]}  Qc2+ {[%clk 0:00:08]} 44. Kd4 {[%clk 0:00:16]}  Qd2+ {[%clk 0:00:07]} 45. Kc4 {[%clk 0:00:15]}  Qa2+ {[%clk 0:00:06]} 46. Kd4 {[%clk 0:00:14]}  Qa4+ {[%clk 0:00:07]} 47. Kc5 {[%clk 0:00:13]}  Qb4+ {[%clk 0:00:07]} 48. Kc6 {[%clk 0:00:14]}  a4 {[%clk 0:00:06]} 49. Qd7 {[%clk 0:00:13]}  Rf8 {[%clk 0:00:05]} 50. Rf4 {[%clk 0:00:12]}  Qc3+ {[%clk 0:00:05]} 51. Kb7 {[%clk 0:00:13]}  a3 {[%clk 0:00:05]} 52. Ra4 {[%clk 0:00:11]}  Qb3 {[%clk 0:00:04]} 53. Ra7 {[%clk 0:00:10]}  a2 {[%clk 0:00:04]} 54. Kxc7 {[%clk 0:00:10]}  Qc3+ {[%clk 0:00:04]} 55. Qc6 {[%clk 0:00:10]}  a1=Q {[%clk 0:00:04]} 56. Ra6 {[%clk 0:00:10]}  Qxa6 {[%clk 0:00:04]} 57. bxa6 {[%clk 0:00:06]}  Rc8+ {[%clk 0:00:04]} 58. Kxc8 {[%clk 0:00:04]}  Qxc6+ {[%clk 0:00:05]} 59. Kb8 {[%clk 0:00:04]}  Qxa6 {[%clk 0:00:05]} 60. Kc7 {[%clk 0:00:05]}  Qa5+ {[%clk 0:00:05]} 61. Kd7 {[%clk 0:00:05]}  Qa2 {[%clk 0:00:06]} 62. Ke7 {[%clk 0:00:05]}  Qxh2 {[%clk 0:00:07]} 63. Kf7 {[%clk 0:00:05]}  Qxg3 {[%clk 0:00:07]} 64. Kf8 {[%clk 0:00:05]}  h5 {[%clk 0:00:08]} 65. Kf7 {[%clk 0:00:06]}  h4 {[%clk 0:00:09]} 0-1


[Site "https://www.chess.com"]

[Event "Titled Tuesday Blitz December 27 Late 2022"]
[White "Makarian, Rudik"]
[Black "Adla, Diego"]
[WhiteFideId "44105681"]
[BlackFideId "100072"]
[WhiteElo "2545"]
[BlackElo "2383"]
[Result "1-0"]
[Round "07"]
[TimeControl "180+2"]
[Date "2022.12.27"]
[WhiteClock "0:01:06"]
[BlackClock "0:00:17"]

1. d4 {[%clk 0:03:00]}  Nf6 {[%clk 0:02:59]} 2. Bg5 {[%clk 0:03:00]}  g6 {[%clk 0:02:58]} 3. Bxf6 {[%clk 0:03:00]}  exf6 {[%clk 0:02:58]} 4. e3 {[%clk 0:03:01]}  Bg7 {[%clk 0:02:57]} 5. c4 {[%clk 0:02:55]}  O-O {[%clk 0:02:54]} 6. Nc3 {[%clk 0:02:54]}  f5 {[%clk 0:02:50]} 7. g3 {[%clk 0:02:55]}  c5 {[%clk 0:02:48]} 8. Nge2 {[%clk 0:02:51]}  cxd4 {[%clk 0:02:44]} 9. Nxd4 {[%clk 0:02:52]}  Nc6 {[%clk 0:02:41]} 10. Nxc6 {[%clk 0:02:39]}  dxc6 {[%clk 0:02:39]} 11. Qc2 {[%clk 0:02:35]}  Be6 {[%clk 0:02:38]} 12. Be2 {[%clk 0:02:35]}  b5 {[%clk 0:02:32]} 13. cxb5 {[%clk 0:02:26]}  cxb5 {[%clk 0:02:31]} 14. O-O {[%clk 0:02:27]}  a6 {[%clk 0:02:24]} 15. Rfd1 {[%clk 0:02:26]}  Qb6 {[%clk 0:02:18]} 16. a3 {[%clk 0:02:26]}  Rac8 {[%clk 0:02:09]} 17. Rac1 {[%clk 0:02:24]}  Rc7 {[%clk 0:02:05]} 18. Qd2 {[%clk 0:02:12]}  Rfc8 {[%clk 0:02:04]} 19. Bf3 {[%clk 0:02:10]}  Bxc3 {[%clk 0:02:01]} 20. Rxc3 {[%clk 0:02:08]}  Rxc3 {[%clk 0:02:01]} 21. bxc3 {[%clk 0:02:09]}  Qa5 {[%clk 0:01:59]} 22. Bb7 {[%clk 0:02:08]}  Rxc3 {[%clk 0:01:51]} 23. Qd4 {[%clk 0:02:01]}  Rxa3 {[%clk 0:01:49]} 24. Qf6 {[%clk 0:02:01]}  Qb4 {[%clk 0:01:10]} 25. Rd8+ {[%clk 0:01:57]}  Qf8 {[%clk 0:01:10]} 26. Rxf8+ {[%clk 0:01:57]}  Kxf8 {[%clk 0:01:11]} 27. h4 {[%clk 0:01:54]}  h5 {[%clk 0:01:10]} 28. Qh8+ {[%clk 0:01:51]}  Ke7 {[%clk 0:01:10]} 29. Bc6 {[%clk 0:01:51]}  Rd3 {[%clk 0:01:05]} 30. Qe8+ {[%clk 0:01:48]}  Kf6 {[%clk 0:01:05]} 31. Qh8+ {[%clk 0:01:48]}  Ke7 {[%clk 0:01:05]} 32. Qa8 {[%clk 0:01:45]}  Rd6 {[%clk 0:00:58]} 33. Qb7+ {[%clk 0:01:28]}  Kf6 {[%clk 0:00:55]} 34. Qxa6 {[%clk 0:01:25]}  b4 {[%clk 0:00:53]} 35. Qa1+ {[%clk 0:01:17]}  Ke7 {[%clk 0:00:53]} 36. Ba4 {[%clk 0:01:17]}  Ra6 {[%clk 0:00:48]} 37. Qd1 {[%clk 0:01:17]}  Rd6 {[%clk 0:00:46]} 38. Qc2 {[%clk 0:01:16]}  b3 {[%clk 0:00:36]} 39. Bxb3 {[%clk 0:01:15]}  Bxb3 {[%clk 0:00:36]} 40. Qxb3 {[%clk 0:01:16]}  Re6 {[%clk 0:00:36]} 41. Kg2 {[%clk 0:01:14]}  Kf8 {[%clk 0:00:36]} 42. Kf3 {[%clk 0:01:14]}  Kg7 {[%clk 0:00:36]} 43. Qc3+ {[%clk 0:01:14]}  Kg8 {[%clk 0:00:35]} 44. Qc4 {[%clk 0:01:13]}  Kg7 {[%clk 0:00:36]} 45. Kf4 {[%clk 0:01:13]}  Re8 {[%clk 0:00:33]} 46. Qd4+ {[%clk 0:01:11]}  Kg8 {[%clk 0:00:29]} 47. Kg5 {[%clk 0:01:12]}  Re4 {[%clk 0:00:26]} 48. Qb2 {[%clk 0:01:07]}  Kf8 {[%clk 0:00:19]} 49. Kh6 {[%clk 0:01:05]}  Ke7 {[%clk 0:00:17]} 50. Kg7 {[%clk 0:01:06]} 1-0


[Site "https://www.chess.com"]

[Event "Titled Tuesday Blitz December 27 Late 2022"]
[White "Martinez Reyes, Pedro Ramon"]
[Black "Curtis, John"]
[WhiteFideId "3901807"]
[BlackFideId "3200256"]
[WhiteElo "2376"]
[BlackElo "2292"]
[Result "1-0"]
[Round "07"]
[TimeControl "180+2"]
[Date "2022.12.27"]
[WhiteClock "0:00:11"]
[BlackClock "0:00:04"]

1. d4 {[%clk 0:03:00]}  Nf6 {[%clk 0:02:55]} 2. Bf4 {[%clk 0:02:57]}  d6 {[%clk 0:02:42]} 3. Nf3 {[%clk 0:02:54]}  g6 {[%clk 0:02:41]} 4. h3 {[%clk 0:02:54]}  Bg7 {[%clk 0:02:41]} 5. e3 {[%clk 0:02:54]}  O-O {[%clk 0:02:38]} 6. Be2 {[%clk 0:02:55]}  Nc6 {[%clk 0:02:36]} 7. c3 {[%clk 0:02:54]}  e6 {[%clk 0:02:20]} 8. a4 {[%clk 0:02:51]}  a6 {[%clk 0:02:15]} 9. Bh2 {[%clk 0:02:51]}  Re8 {[%clk 0:02:14]} 10. Na3 {[%clk 0:02:47]}  Qe7 {[%clk 0:02:14]} 11. Nc4 {[%clk 0:02:42]}  Ne4 {[%clk 0:02:13]} 12. Nfd2 {[%clk 0:02:38]}  Nxd2 {[%clk 0:02:12]} 13. Qxd2 {[%clk 0:02:35]}  Bd7 {[%clk 0:02:05]} 14. O-O {[%clk 0:02:28]}  Rad8 {[%clk 0:02:06]} 15. e4 {[%clk 0:02:13]}  d5 {[%clk 0:02:01]} 16. exd5 {[%clk 0:02:05]}  exd5 {[%clk 0:02:00]} 17. Ne3 {[%clk 0:02:06]}  Be6 {[%clk 0:01:48]} 18. Bf4 {[%clk 0:01:43]}  Qd7 {[%clk 0:01:41]} 19. Ng4 {[%clk 0:01:39]}  Bxg4 {[%clk 0:01:30]} 20. Bxg4 {[%clk 0:01:38]}  f5 {[%clk 0:01:29]} 21. Bf3 {[%clk 0:01:36]}  Ne7 {[%clk 0:01:28]} 22. Rfe1 {[%clk 0:01:29]}  Nc8 {[%clk 0:01:16]} 23. Bg5 {[%clk 0:01:26]}  Rxe1+ {[%clk 0:01:15]} 24. Rxe1 {[%clk 0:01:26]}  Rf8 {[%clk 0:01:12]} 25. h4 {[%clk 0:01:25]}  c6 {[%clk 0:01:10]} 26. h5 {[%clk 0:01:25]}  Kf7 {[%clk 0:01:02]} 27. Qf4 {[%clk 0:00:46]}  Re8 {[%clk 0:00:41]} 28. Rxe8 {[%clk 0:00:43]}  Kxe8 {[%clk 0:00:41]} 29. h6 {[%clk 0:00:38]}  Bf8 {[%clk 0:00:19]} 30. Qe5+ {[%clk 0:00:38]}  Kf7 {[%clk 0:00:13]} 31. Qh8 {[%clk 0:00:31]}  Ke8 {[%clk 0:00:11]} 32. Qe5+ {[%clk 0:00:19]}  Kf7 {[%clk 0:00:11]} 33. g4 {[%clk 0:00:12]}  Nd6 {[%clk 0:00:04]} 34. Qh8 {[%clk 0:00:11]} 1-0


[Site "https://www.chess.com"]

[Event "Titled Tuesday Blitz December 27 Late 2022"]
[White "Melikyan, Gnel"]
[Black "Gerbelli Neto, Eduardo"]
[WhiteFideId "54109990"]
[BlackFideId "2103281"]
[WhiteElo "2238"]
[BlackElo "2114"]
[Result "0-1"]
[Round "07"]
[TimeControl "180+2"]
[Date "2022.12.27"]
[WhiteClock "0:00:09"]
[BlackClock "0:01:00"]

1. d4 {[%clk 0:02:45]}  d5 {[%clk 0:02:59]} 2. c4 {[%clk 0:02:46]}  c6 {[%clk 0:02:59]} 3. Nc3 {[%clk 0:02:45]}  Nf6 {[%clk 0:02:59]} 4. cxd5 {[%clk 0:02:44]}  cxd5 {[%clk 0:02:59]} 5. Bf4 {[%clk 0:02:45]}  Nc6 {[%clk 0:03:00]} 6. e3 {[%clk 0:02:45]}  Bf5 {[%clk 0:03:00]} 7. Nf3 {[%clk 0:02:45]}  e6 {[%clk 0:03:01]} 8. Qb3 {[%clk 0:02:44]}  Bb4 {[%clk 0:02:51]} 9. Ne5 {[%clk 0:02:44]}  Qb6 {[%clk 0:02:44]} 10. Bb5 {[%clk 0:02:36]}  Qxb5 {[%clk 0:02:40]} 11. O-O-O {[%clk 0:02:26]}  Qa5 {[%clk 0:02:21]} 12. Na4 {[%clk 0:02:20]}  Nxe5 {[%clk 0:02:16]} 13. Bxe5 {[%clk 0:02:19]}  Rc8+ {[%clk 0:02:16]} 14. Nc5 {[%clk 0:02:20]}  Bxc5 {[%clk 0:01:53]} 15. dxc5 {[%clk 0:02:20]}  Rxc5+ {[%clk 0:01:50]} 16. Bc3 {[%clk 0:02:18]}  Ne4 {[%clk 0:01:46]} 17. Rd3 {[%clk 0:02:03]}  Nxf2 {[%clk 0:01:39]} 18. Rd2 {[%clk 0:01:55]}  Nxh1 {[%clk 0:01:34]} 19. Qxb7 {[%clk 0:01:52]}  O-O {[%clk 0:01:16]} 20. e4 {[%clk 0:01:46]}  Bxe4 {[%clk 0:01:12]} 21. Qe7 {[%clk 0:01:44]}  Qxa2 {[%clk 0:01:03]} 22. Rd1 {[%clk 0:01:39]}  Rxc3+ {[%clk 0:01:01]} 23. Kd2 {[%clk 0:00:09]}  Qxb2+ {[%clk 0:01:00]} 24. Ke1 {[%clk 0:00:09]}  Qf2# {[%clk 0:01:00]} 0-1


[Site "https://www.chess.com"]

[Event "Titled Tuesday Blitz December 27 Late 2022"]
[White "Melkumyan, Hrant"]
[Black "Theodorou, Nikolas"]
[WhiteFideId "13302485"]
[BlackFideId "4262875"]
[WhiteElo "2645"]
[BlackElo "2591"]
[Result "0-1"]
[Round "07"]
[TimeControl "180+2"]
[Date "2022.12.27"]
[WhiteClock "0:00:02"]
[BlackClock "0:00:15"]

1. d4 {[%clk 0:03:00]}  Nf6 {[%clk 0:03:00]} 2. c4 {[%clk 0:03:01]}  g6 {[%clk 0:03:00]} 3. Nc3 {[%clk 0:03:01]}  Bg7 {[%clk 0:03:01]} 4. e4 {[%clk 0:03:02]}  d6 {[%clk 0:03:02]} 5. Be2 {[%clk 0:03:03]}  O-O {[%clk 0:03:02]} 6. h4 {[%clk 0:03:03]}  h5 {[%clk 0:03:01]} 7. Nf3 {[%clk 0:03:02]}  Bg4 {[%clk 0:02:57]} 8. Bg5 {[%clk 0:02:59]}  Nbd7 {[%clk 0:02:56]} 9. Nd2 {[%clk 0:02:42]}  Bxe2 {[%clk 0:02:57]} 10. Qxe2 {[%clk 0:02:43]}  a6 {[%clk 0:02:37]} 11. O-O {[%clk 0:02:38]}  Nh7 {[%clk 0:02:32]} 12. Nf3 {[%clk 0:02:27]}  Nxg5 {[%clk 0:02:28]} 13. hxg5 {[%clk 0:02:28]}  c5 {[%clk 0:02:11]} 14. Rad1 {[%clk 0:02:20]}  cxd4 {[%clk 0:02:05]} 15. Nxd4 {[%clk 0:02:21]}  Rc8 {[%clk 0:02:05]} 16. Rd2 {[%clk 0:01:48]}  Ne5 {[%clk 0:02:00]} 17. b3 {[%clk 0:01:43]}  b5 {[%clk 0:02:01]} 18. f4 {[%clk 0:01:09]}  Ng4 {[%clk 0:02:01]} 19. Nd5 {[%clk 0:01:09]}  bxc4 {[%clk 0:01:52]} 20. bxc4 {[%clk 0:01:09]}  e5 {[%clk 0:01:19]} 21. fxe5 {[%clk 0:01:05]}  Bxe5 {[%clk 0:01:05]} 22. Nf3 {[%clk 0:01:05]}  Bg7 {[%clk 0:01:04]} 23. Rc1 {[%clk 0:00:58]}  Kh8 {[%clk 0:01:03]} 24. Kh1 {[%clk 0:00:55]}  Re8 {[%clk 0:01:00]} 25. Qd3 {[%clk 0:00:50]}  Qa5 {[%clk 0:00:57]} 26. Rf1 {[%clk 0:00:48]}  Qc5 {[%clk 0:00:45]} 27. Rc2 {[%clk 0:00:47]}  Kg8 {[%clk 0:00:41]} 28. Qe2 {[%clk 0:00:39]}  Re6 {[%clk 0:00:38]} 29. Qd3 {[%clk 0:00:38]}  Rce8 {[%clk 0:00:37]} 30. Re2 {[%clk 0:00:36]}  a5 {[%clk 0:00:33]} 31. Qc2 {[%clk 0:00:36]}  Rb8 {[%clk 0:00:31]} 32. Qd3 {[%clk 0:00:34]}  a4 {[%clk 0:00:31]} 33. Nf4 {[%clk 0:00:29]}  Ree8 {[%clk 0:00:30]} 34. Nd5 {[%clk 0:00:21]}  a3 {[%clk 0:00:29]} 35. Nd2 {[%clk 0:00:12]}  Rb2 {[%clk 0:00:24]} 36. Nb3 {[%clk 0:00:13]}  Qa7 {[%clk 0:00:20]} 37. Nf4 {[%clk 0:00:12]}  Qe7 {[%clk 0:00:16]} 38. g3 {[%clk 0:00:07]}  Rxe2 {[%clk 0:00:10]} 39. Qxe2 {[%clk 0:00:07]}  Qxe4+ {[%clk 0:00:11]} 40. Qxe4 {[%clk 0:00:08]}  Rxe4 {[%clk 0:00:12]} 41. c5 {[%clk 0:00:02]}  dxc5 {[%clk 0:00:12]} 42. Nxc5 {[%clk 0:00:03]}  Rc4 {[%clk 0:00:13]} 43. Ncd3 {[%clk 0:00:02]}  Rc2 {[%clk 0:00:14]} 44. Nb4 {[%clk 0:00:02]}  Rh2+ {[%clk 0:00:14]} 45. Kg1 {[%clk 0:00:02]}  Bd4+ {[%clk 0:00:15]} 0-1


[Site "https://www.chess.com"]

[Event "Titled Tuesday Blitz December 27 Late 2022"]
[White "Mitrovic, Darko R"]
[Black "Kopacz, Grzegorz"]
[WhiteFideId "927023"]
[BlackFideId "1109880"]
[WhiteElo "2220"]
[BlackElo "1997"]
[Result "0-1"]
[Round "07"]
[TimeControl "180+2"]
[Date "2022.12.27"]
[WhiteClock "0:00:16"]
[BlackClock "0:00:44"]

1. d4 {[%clk 0:03:00]}  Nf6 {[%clk 0:02:59]} 2. Nf3 {[%clk 0:03:01]}  c5 {[%clk 0:02:58]} 3. d5 {[%clk 0:03:00]}  d6 {[%clk 0:02:56]} 4. c4 {[%clk 0:03:01]}  b5 {[%clk 0:02:57]} 5. cxb5 {[%clk 0:02:47]}  a6 {[%clk 0:02:57]} 6. bxa6 {[%clk 0:02:47]}  Bxa6 {[%clk 0:02:55]} 7. Nc3 {[%clk 0:02:47]}  g6 {[%clk 0:02:55]} 8. g3 {[%clk 0:02:39]}  Bg7 {[%clk 0:02:55]} 9. Bg2 {[%clk 0:02:39]}  O-O {[%clk 0:02:56]} 10. O-O {[%clk 0:02:40]}  Nbd7 {[%clk 0:02:56]} 11. Re1 {[%clk 0:02:30]}  Nb6 {[%clk 0:02:56]} 12. e4 {[%clk 0:02:12]}  Nfd7 {[%clk 0:02:55]} 13. Rb1 {[%clk 0:02:00]}  Ne5 {[%clk 0:02:48]} 14. Nxe5 {[%clk 0:02:00]}  Bxe5 {[%clk 0:02:48]} 15. f4 {[%clk 0:01:51]}  Bg7 {[%clk 0:02:45]} 16. e5 {[%clk 0:01:46]}  dxe5 {[%clk 0:02:29]} 17. fxe5 {[%clk 0:01:44]}  Nc4 {[%clk 0:02:30]} 18. Bf4 {[%clk 0:01:25]}  g5 {[%clk 0:02:17]} 19. Bxg5 {[%clk 0:01:23]}  Nxe5 {[%clk 0:02:16]} 20. Qh5 {[%clk 0:01:11]}  Bd3 {[%clk 0:02:12]} 21. Rbd1 {[%clk 0:00:49]}  Bg6 {[%clk 0:02:01]} 22. Qe2 {[%clk 0:00:43]}  Ra7 {[%clk 0:01:31]} 23. d6 {[%clk 0:00:42]}  f6 {[%clk 0:01:26]} 24. dxe7 {[%clk 0:00:36]}  Qxe7 {[%clk 0:01:24]} 25. Bf4 {[%clk 0:00:30]}  Qc7 {[%clk 0:00:45]} 26. Nd5 {[%clk 0:00:16]}  Qa5 {[%clk 0:00:44]} 0-1


[Site "https://www.chess.com"]